Workbook

Sheet Pos m Pos b
A1: Designing Gain and Offset with Positive m and Positive b | S1: Positive m and Positive b
A2: To design such a circuit, some things must be known in advance. The values in yellow cells: | S2: Default values
A3: The voltage of the Power Supply for Op-Amp = | B3: Vcc = | C3: =+T3 -> 6 | D3: Volt | S3: Vcc = | T3: 6 | U3: Volt
A4: The voltage level of a stable reference = | B4: Vref = | C4: 6 | D4: Volt | S4: Vref = | T4: 6 | U4: Volt
A5: The full-scale output voltage = | B5: VoutFS = | C5: 4 | D5: Volt | S5: VoutFS = | T5: 4 | U5: Volt
A6: The zero-scale output voltage = | B6: VoutZS = | C6: 1 | D6: Volt | S6: VoutZS = | T6: 1 | U6: Volt
A7: The full-scale input voltage = | B7: VinFS = | C7: 1 | D7: Volt | S7: VinFS = | T7: 1 | U7: Volt
A8: The zero-scale input voltage = | B8: VinZS = | C8: 0.01 | D8: Volt | S8: VinZS = | T8: 0.01 | U8: Volt
A9: Positive m and Positive b | F9: =IF(AND(F10>0,F11>0),"Select Pos m Pos b",IF(AND(F10>0,F11<0),"Select Pos m Neg b",IF(AND(F10<0,F11>0),"Select Neg m Pos b",IF(AND(F10<0,F11<0),"Select Neg m Neg b","Try again")))) -> Select Pos m Pos b | I9: =IF(AND(F10>0,F11>0),"OK","Try again") -> OK | J9: Gain = 1 + (Rf/Rg) = | M9: =1+(D14/D16) -> 3.177419355 | N9: With standard values
A10: m = the gain of the stage | B10: m = | C10: (VoutFS - VoutZS) / (VinFS - VinZS) = | F10: =(C5-C6)/(C7-C8) -> 3.03030303 | G10: |m| = | H10: =ABS(F10) -> 3.03030303 | J10: DC-Coupled Non-Inverting Amplifier
A11: b = the offset of the gain | B11: b = | C11: VoutZS - (m * VinZS) = | F11: =C6-(F10*C8) -> 0.9696969697 | G11: |b| = | H11: =ABS(F11) -> 0.9696969697
A13: Choose R1 = | B13: R1 = | C13: 10000 | D13: =+C13 -> 10000 | E13: Ω | F13: =+D13/1000 -> 10 | G13: kΩ | H13: Intermediate Values | K13: Resulting Values
A14: Select Rf from the data sheet = | B14: Rf = | C14: 27000 | D14: =+C14 -> 27000 | E14: Ω | F14: =+D14/1000 -> 27 | G14: kΩ | H14: VoutZS = | I14: =F10*C26+F11 -> 1 | J14: Volt | K14: 0.9984 | L14: Volt | M14: See simulator program above with standard resistors
A15: Calculate R2 = Vref*R1*m/b = | B15: R2 = | C15: =C4*C13*F10/F11 -> 187500 | D15: 187000 | E15: Ω | F15: =+D15/1000 -> 187 | G15: kΩ | H15: VoutFS = | I15: =F10*D26+F11 -> 4 | J15: Volt | K15: 3.984 | L15: Volt
A16: Calculate Rg = (R2*Rf)/(m*(R1+R2)-R2) = | B16: Rg = | C16: =(C15*C14)/(F10*(C13+C15)-C15) -> 12317.97235 | D16: 12400 | E16: Ω | F16: =+D16/1000 -> 12.4 | G16: kΩ
A17: Positive m and Positive b with filtering - Rollof frequency fo at Vin
A18: Calculate Co Rollof frequency fo at Vin
A19: Select fo = | B19: fo = | C19: 33860 | D19: Hz | E19: =+C19/1000 -> 33.86 | F19: kHz | G19: =E19/1000 -> 0.03386 | H19: MHz
A20: Co can be determined by = 1/(2*phi*R1*fo) = | B20: Co = | C20: =(1/(2*PI()*D13*C19))*10^6 -> 0.0004700382253 | D20: uF | E20: =C20*1000 -> 0.4700382253 | F20: nF | G20: =E20*1000 -> 470.0382253 | H20: pF
A21: Calculate Rollof frequency fo with Co at Vin | K21: Udarbejdet af Jørgen Walter ©
A22: Select Co = | B22: Co = | C22: 470 | D22: pF | E22: =C22/1000 -> 0.47 | F22: nF | G22: =E22/1000 -> 0.00047 | H22: uF | K22: www.walter-lystfisker.dk
A23: fo can be determined by = 1/(2*phi*R1*Co) = | B23: fo = | C23: =(1/(2*PI()*D13*C22*10^-12)) -> 33862.75385 | D23: Hz | E23: =C23/1000 -> 33.86275385 | F23: kHz | G23: =E23/1000 -> 0.03386275385 | H23: MHz
A24: Straight line = Y =( m * X) + b = Vout = (m * Vin) + b | K24: COPYRIGHT © 2014
A25: Vout LM324 | C25: =+C6 -> 1 | D25: =+C5 -> 4 | F25: m= | G25: =+F10 -> 3.03030303
A26: Vin | C26: =+C8 -> 0.01 | D26: =+C7 -> 1 | F26: b= | G26: =+F11 -> 0.9696969697
A27: Vout = (m * Vin) + b | C27: =(F10*C26)+F11 -> 1 | D27: =(F10*D26)+F11 -> 4
C49: Default Values for Input Signal = VinFS = 1V
C67: Default Values for Output Signal = VoutFS = (VinFS*m) + b = (1V*3,0303) + 0,9696V = 3,9999V
A85: walter | Y85: Reg.No.1260

Sheet Pos m Neg b
A1: Designing Gain and Offset with Positive m and Negative b | S1: Positive m and Negative b
A2: To design such a circuit, some things must be known in advance. The values in yellow cells: | S2: Default values
A3: The voltage of the Power Supply for Op-Amp = | B3: Vcc = | C3: =+T3 -> 10 | D3: Volt | S3: Vcc = | T3: 10 | U3: Volt
A4: The voltage level of a stable reference = | B4: Vref = | C4: 10 | D4: Volt | S4: Vref = | T4: 10 | U4: Volt
A5: The full-scale output voltage = | B5: VoutFS = | C5: 4.5 | D5: Volt | S5: VoutFS = | T5: 4.5 | U5: Volt
A6: The zero-scale output voltage = | B6: VoutZS = | C6: 1.5 | D6: Volt | S6: VoutZS = | T6: 1.5 | U6: Volt
A7: The full-scale input voltage = | B7: VinFS = | C7: 0.5 | D7: Volt | S7: VinFS = | T7: 0.5 | U7: Volt
A8: The zero-scale input voltage = | B8: VinZS = | C8: 0.2 | D8: Volt | S8: VinZS = | T8: 0.2 | U8: Volt
A9: Positive m and Negative b | F9: =IF(AND(F10>0,F11>0),"Select Pos m Pos b",IF(AND(F10>0,F11<0),"Select Pos m Neg b",IF(AND(F10<0,F11>0),"Select Neg m Pos b",IF(AND(F10<0,F11<0),"Select Neg m Neg b","Try again")))) -> Select Pos m Neg b | I9: =IF(AND(F10>0,F11<0),"OK","Try again") -> OK | J9: Gain = 1 + (Rf/Rg) = | M9: =1+(D13/D15) -> 10 | N9: With standard values
A10: m = the gain of the stage | B10: m = | C10: (VoutFS - VoutZS) / (VinFS - VinZS) = | F10: =(C5-C6)/(C7-C8) -> 10 | G10: |m| = | H10: =ABS(F10) -> 10 | J10: DC-Coupled Non-Inverting Amplifier
A11: b = the offset of the gain | B11: b = | C11: VoutZS - (m * VinZS) = | F11: =C6-(F10*C8) -> -0.5 | G11: |b| = | H11: =ABS(F11) -> 0.5
A12: Approximation which assumes R1||Rg2<<Rg1 | B12: =IF(D20<D17,"OK","Not OK") -> OK | C12: Calculated | D12: Standard | F12: Standard values
A13: Select Rf from the data sheet = | B13: Rf = | C13: 180000 | D13: =+C13 -> 180000 | E13: Ω | F13: =+D13/1000 -> 180 | G13: kΩ | H13: Intermediate Values | K13: Resulting Values
A14: Choose Ro = | B14: Ro = | C14: 20000 | D14: =+C14 -> 20000 | E14: Ω | F14: =+D14/1000 -> 20 | G14: kΩ | H14: VoutZS = | I14: =F10*C30+F11 -> 1.5 | J14: Volt | K14: 1.589 | L14: Volt | M14: See simulator program above with standard resistors
A15: Calculate Rg = Rf/(m-1) = | B15: Rg = | C15: =C13/(F10-1) -> 20000 | D15: 20000 | E15: Ω | F15: =+D15/1000 -> 20 | G15: kΩ | H15: VoutFS = | I15: =F10*D30+F11 -> 4.5 | J15: Volt | K15: 4.59 | L15: Volt
A16: Choose Rg2 = Rg/10 = | B16: Rg2 = | C16: =+C15/10 -> 2000 | D16: 2000 | E16: Ω | F16: =+D16/1000 -> 2 | G16: kΩ
A17: Calculate Rg1 = Rg - Rg2 = | B17: Rg1 = | C17: =+C15-C16 -> 18000 | D17: 18000 | E17: Ω | F17: =+D17/1000 -> 18 | G17: kΩ
A18: Calculate Vref' = (|b|*Rg1)/(Rg1+Rf) = | B18: Vref' = | C18: =(H11*C17)/(C17+C13) -> 0.04545454545 | D18: =+C18 -> 0.04545454545 | E18: Volt | F18: =+D18*1000 -> 45.45454545 | G18: mV
A19: Calculate R1 = Rg2*( Vref - Vref')/Vref' = | B19: R1 = | C19: =C16*(C4-C18)/C18 -> 438000 | D19: 432000 | E19: Ω | F19: =+D19/1000 -> 432 | G19: kΩ
A20: R1||Rg2 = (R1*Rg2)/(R1+Rg2) = | B20: R1||Rg2 | C20: =(C19*C16)/(C19+C16) -> 1990.909091 | D20: =(D19*D16)/(D19+D16) -> 1990.78341
A21: Positive m and Negative b with filtering - Rollof frequency fo at Vin | K21: Udarbejdet af Jørgen Walter ©
A22: Calculate Co Rollof frequency fo at Vin | K22: www.walter-lystfisker.dk
A23: Select fo = | B23: fo = | C23: 16931.35639 | D23: Hz | E23: =+C23/1000 -> 16.93135639 | F23: kHz | G23: =E23/1000 -> 0.01693135639 | H23: MHz
A24: Co can be determined by = 1/(2*phi*Ro*fo) = | B24: Co = | C24: =(1/(2*PI()*D14*C23))*10^6 -> 0.00047000057 | D24: uF | E24: =C24*1000 -> 0.47000057 | F24: nF | G24: =E24*1000 -> 470.00057 | H24: pF | K24: COPYRIGHT © 2014
A25: Calculate Rollof frequency fo with Co at Vin
A26: Select Co = | B26: Co = | C26: 470 | D26: pF | E26: =C26/1000 -> 0.47 | F26: nF | G26: =E26/1000 -> 0.00047 | H26: uF
A27: fo can be determined by = 1/(2*phi*Ro*Co) = | B27: fo = | C27: =(1/(2*PI()*D14*C26*10^-12)) -> 16931.37692 | D27: Hz | E27: =C27/1000 -> 16.93137692 | F27: kHz | G27: =E27/1000 -> 0.01693137692 | H27: MHz
A28: Straight line = Y = m * X - b = Vout = m * Vin - b
A29: Vout LM324 | C29: =+C6 -> 1.5 | D29: =+C5 -> 4.5 | F29: m= | G29: =+F10 -> 10
A30: Vin | C30: =+C8 -> 0.2 | D30: =+C7 -> 0.5 | F30: b= | G30: =+F11 -> -0.5
A31: Vout = (m * Vin) - b | C31: =(H10*C30)+F11 -> 1.5 | D31: =(H10*D30)+F11 -> 4.5
A48: walter
C52: Default Values for Input Signal = VinFS = 0,5V
C68: Default Values for Output Signal = VoutFS = (VinFS*m) + b = 0,5V*10 + (-05V) = 4,5V
A84: walter | Y84: Reg.No.1260

Sheet Neg m Pos b
A1: Designing Gain and Offset with Negative m and Positive b | S1: Negative m and Positive b
A2: To design such a circuit, some things must be known in advance. The values in yellow cells: | S2: Default values
A3: The voltage of the Power Supply for Op-Amp = | B3: Vcc = | C3: =+T3 -> 5 | D3: Volt | S3: Vcc = | T3: 5 | U3: Volt
A4: The voltage level of a stable reference = | B4: Vref = | C4: 5 | D4: Volt | S4: Vref = | T4: 5 | U4: Volt
A5: The full-scale output voltage = | B5: VoutFS = | C5: 1 | D5: Volt | S5: VoutFS = | T5: 1 | U5: Volt
A6: The zero-scale output voltage = | B6: VoutZS = | C6: 3.5 | D6: Volt | S6: VoutZS = | T6: 3.5 | U6: Volt
A7: The full-scale input voltage = | B7: VinFS = | C7: 4 | D7: Volt | S7: VinFS = | T7: 4 | U7: Volt
A8: The zero-scale input voltage = | B8: VinZS = | C8: 1.5 | D8: Volt | S8: VinZS = | T8: 1.5 | U8: Volt
A9: Negative m and Positive b | F9: =IF(AND(F10>0,F11>0),"Select Pos m Pos b",IF(AND(F10>0,F11<0),"Select Pos m Neg b",IF(AND(F10<0,F11>0),"Select Neg m Pos b",IF(AND(F10<0,F11<0),"Select Neg m Neg b","Try again")))) -> Select Neg m Pos b | I9: =IF(AND(F10<0,F11>0),"OK","Try again") -> OK | J9: -Gain = Rf/R2 | M9: =D13/D14 -> 1 | N9: With standard values
A10: m = the gain of the stage | B10: m = | C10: (VoutFS - VoutZS) / (VinFS - VinZS) = | F10: =(C5-C6)/(C7-C8) -> -1 | G10: |m| = | H10: =ABS(F10) -> 1 | J10: DC-Coupled Inverting Amplifier
A11: b = the offset of the gain | B11: b = | C11: VoutZS - (m * VinZS) = | F11: =C6-(F10*C8) -> 5 | G11: |b| = | H11: =ABS(F11) -> 5
C12: Calculated | D12: Standard | F12: Standard values
A13: Select Rf from the data sheet = | B13: Rf = | C13: 100000 | D13: =+C13 -> 100000 | E13: Ω | F13: =+D13/1000 -> 100 | G13: kΩ | H13: Intermediate Values | K13: Resulting Values
A14: Chose R2 (same order of magnitude as Rf) = | B14: R2 = | C14: 100000 | D14: =+C14 -> 100000 | E14: Ω | F14: =+D14/1000 -> 100 | G14: kΩ | H14: VoutZS = | I14: =F10*C28+F11 -> 3.5 | J14: Volt | K14: 1 | L14: Volt | M14: See simulator program above with standard resistors
A15: Calculate Rg = Rf/|m| = | B15: Rg = | C15: =C13/H10 -> 100000 | D15: 100000 | E15: Ω | F15: =+D15/1000 -> 100 | G15: kΩ | H15: VoutFS = | I15: =F10*D28+F11 -> 1 | J15: Volt | K15: 3.459 | L15: Volt
A16: Calculate R1 = (b*R2*Rg)/(Vref*(Rf+Rg)-(b*Rg)) = | B16: R1 = | C16: =(H11*C14*C15)/(C4*(C13+C15)-(H11*C15)) -> 100000 | D16: 100000 | E16: Ω | F16: =+D16/1000 -> 100 | G16: kΩ
A18: Negative m and Positive b with filtering - Rollof frequency fo at Vin
A19: Calculate Cf Rollof frequency fo at Vin
A20: Select fo = | B20: fo = | C20: 3386 | D20: Hz | E20: =+C20/1000 -> 3.386 | F20: kHz | G20: =E20/1000 -> 0.003386 | H20: MHz
A21: Cf can be determined by = 1/(2*phi*Rf*fo) = | B21: Cf = | C21: =(1/(2*PI()*D13*C20))*10^6 -> 0.0004700382253 | D21: uF | E21: =C21*1000 -> 0.4700382253 | F21: nF | G21: =E21*1000 -> 470.0382253 | H21: pF | K21: Udarbejdet af Jørgen Walter ©
A22: Calculate Rollof frequency fo with Cf at Vin | K22: www.walter-lystfisker.dk
A23: Select Cf = | B23: Cf = | C23: 470 | D23: pF | E23: =C23/1000 -> 0.47 | F23: nF | G23: =E23/1000 -> 0.00047 | H23: uF
A24: fo can be determined by = 1/(2*phi*Rf*Cf) = | B24: fo = | C24: =(1/(2*PI()*D13*C23*10^-12)) -> 3386.275385 | D24: Hz | E24: =C24/1000 -> 3.386275385 | F24: kHz | G24: =E24/1000 -> 0.003386275385 | H24: MHz | K24: COPYRIGHT © 2014
A26: Straight line = Y = m * X + b = Vout = m * Vin + b
A27: Vout LM324 | C27: =+C6 -> 3.5 | D27: =+C5 -> 1 | F27: m= | G27: =+F10 -> -1
A28: Vin | C28: =+C8 -> 1.5 | D28: =+C7 -> 4 | F28: b= | G28: =+F11 -> 5
A29: Vout = -(m * Vin) + b | C29: =(F10*C28)+F11 -> 3.5 | D29: =(F10*D28)+F11 -> 1
C51: Default Values for Input Signal = VinFS = 4V
C67: Default Values for Output Signal = VoutFS = (VinFS*m) + b = 4V*(-1) + 5V = 1V
A83: walter | Y83: Reg.No.1260

Sheet Neg m Neg b
A1: Designing Gain and Offset with Negative m and Negative b | S1: Negative m and Negative b
A2: To design such a circuit, some things must be known in advance. The values in yellow cells: | S2: Default values
A3: The voltage of the Power Supply for Op-Amp = | B3: Vcc = | C3: =+T3 -> 8 | D3: Volt | S3: Vcc = | T3: 8 | U3: Volt
A4: The voltage level of a stable reference = | B4: Vref = | C4: 8 | D4: Volt | S4: Vref = | T4: 8 | U4: Volt
A5: The full-scale output voltage = | B5: VoutFS = | C5: 1 | D5: Volt | S5: VoutFS = | T5: 1 | U5: Volt
A6: The zero-scale output voltage = | B6: VoutZS = | C6: 5 | D6: Volt | S6: VoutZS = | T6: 5 | U6: Volt
A7: The full-scale input voltage = | B7: VinFS = | C7: -0.1 | D7: Volt | S7: VinFS = | T7: -0.1 | U7: Volt
A8: The zero-scale input voltage = | B8: VinZS = | C8: -0.3 | D8: Volt | S8: VinZS = | T8: -0.3 | U8: Volt
A9: Negative m and Negative b | F9: =IF(AND(F10>0,F11>0),"Select Pos m Pos b",IF(AND(F10>0,F11<0),"Select Pos m Neg b",IF(AND(F10<0,F11>0),"Select Neg m Pos b",IF(AND(F10<0,F11<0),"Select Neg m Neg b","Try again")))) -> Select Neg m Neg b | I9: =IF(AND(F10<0,F11<0),"OK","Try again") -> OK | J9: -Gain =-(Rf/(Rg1||Rg2)) = | M9: =(D13/D16) -> 20.125 | N9: With standard values
A10: m = the gain of the stage | B10: m = | C10: (VoutFS - VoutZS) / (VinFS - VinZS) = | F10: =(C5-C6)/(C7-C8) -> -20 | G10: |m| = | H10: =ABS(F10) -> 20 | J10: DC-Coupled Inverting Amplifier
A11: b = the offset of the gain | B11: b = | C11: VoutZS - (m * VinZS) = | F11: =C6-(F10*C8) -> -1 | G11: |b| = | H11: =ABS(F11) -> 1
C12: Calculated | D12: Standard | F12: Standard values
A13: Select Rf from the data sheet = | B13: Rf = | C13: 20000 | D13: =+C13 -> 20000 | E13: Ω | F13: =+D13/1000 -> 20 | G13: kΩ | H13: Intermediate Values | K13: Resulting Values
A14: Calculate Rg1 = Rf/|m| = | B14: Rg1 = | C14: =C13/H10 -> 1000 | D14: 1000 | E14: Ω | F14: =+D14/1000 -> 1 | G14: kΩ | H14: VoutZS = | I14: =F10*C26+F11 -> 5 | J14: Volt | K14: 5.003 | L14: Volt | M14: See simulator program above with standard resistors
A15: Calculate Rg2 = Vref*Rf/|b| = | B15: Rg2 = | C15: =C4*C13/H11 -> 160000 | D15: 160000 | E15: Ω | F15: =+D15/1000 -> 160 | G15: kΩ | H15: VoutFS = | I15: =F10*D26+F11 -> 1 | J15: Volt | K15: 1.004 | L15: Volt
A16: Rg1||Rg2 = (Rg1*Rg2)/(Rg1+Rg2) = | B16: Rg1||Rg2 | C16: =(C14*C15)/(C14+C15) -> 993.7888199 | D16: =(D14*D15)/(D14+D15) -> 993.7888199 | E16: Ω | F16: =+D16/1000 -> 0.9937888199 | G16: kΩ
A17: Negative m and Negative b with filtering - Rollof frequency fo at Vin
A18: Rollof frequency fo at Vin
A19: Select fo = | B19: fo = | C19: 16931 | D19: Hz | E19: =+C19/1000 -> 16.931 | F19: kHz | G19: =E19/1000 -> 0.016931 | H19: MHz
A20: Cf can be determined by = 1/(2*phi*Rf*fo) = | B20: Cf = | C20: =(1/(2*PI()*D13*C19))*10^6 -> 0.0004700104633 | D20: uF | E20: =C20*1000 -> 0.4700104633 | F20: nF | G20: =E20*1000 -> 470.0104633 | H20: pF
A21: Rollof frequency fo at Vin | K21: Udarbejdet af Jørgen Walter ©
A22: Select Cf = | B22: Cf = | C22: 470 | D22: pF | E22: =C22/1000 -> 0.47 | F22: nF | G22: =E22/1000 -> 0.00047 | H22: uF | K22: www.walter-lystfisker.dk
A23: fo can be determined by = 1/(2*phi*Rf*Cf) = | B23: fo = | C23: =(1/(2*PI()*D13*C22*10^-12)) -> 16931.37692 | D23: Hz | E23: =C23/1000 -> 16.93137692 | F23: kHz | G23: =E23/1000 -> 0.01693137692 | H23: MHz
A24: Straight line = Y = m * X - b = Vout = m * Vin - b | K24: COPYRIGHT © 2014
A25: Vout LM324 | C25: =+C6 -> 5 | D25: =+C5 -> 1 | F25: m= | G25: =+F10 -> -20
A26: Vin | C26: =+C8 -> -0.3 | D26: =+C7 -> -0.1 | F26: b= | G26: =+F11 -> -1
A27: Vout = -(m * Vin) - b | C27: =(F10*C26)+F11 -> 5 | D27: =(F10*D26)+F11 -> 1
A48: walter
C49: Default Values for Input Signal = VinFS = -0,1V
C66: Default Values for Output Signal = VoutFS = (VinFS*m) + b = (-0,1V*(-20) + (-1V) = 1V
A83: walter | Y83: Reg.No.1260

Sheet Manual
A1: Instruktions Manual for Designing af forstærkning og offset i en Op-Amp | Y1: Y | AC1: Y = f(X) + b
A2: For at bruge denne side korrekt skal ovennævnte "Sikkerhedsadvarsel" for Makroer aktiveres. Tast "Indstillinger" og "Aktiver indholdet". | Y2: 10
A3: Inden brug af regnearket vil jeg komme med et godt råd, læs hjemmesiden med "Linjens Ligning" | H3: http://da.wikipedia.org/wiki/Linjens_ligning | P3: Green offset = 0 | Y3: 9 | AA3: Y=(X)+0 (0 skæring med Y-aksen)
A4: Linjens ligning er givet ved: | C4: Y = + -m*X + - b | D4: eller | E4: Y - Yₒ = a*(X - Xₒ) + b | G4: hvor X er variablen, m er hældningen for linjen og b er skæringen med Y aksen | P4: Red offset = 3 | Y4: 8 | AA4: Indsættes X=7 fås Y=7
A5: I regnearket er Y erstattet med Vout, m er erstattet med forstærkningen i Op-Amp og b er erstattet med offset | P5: Blue offset = -1 | Y5: 7 | AA5: Indsættes X=0 fås Y=-0
A6: Skal man designe en forstærker med en given Input: Vin(min) og Vin(max) samt Vout(min) og Vout(max) anvendes formlen: | Y6: 6
A7: Vout(max) - Vout(min) = m*(Vin(max) - Vin(min)) + b | E7: m og b beregnes efter formlerne nedenfor | Y7: 5
A8: m = forstærkningen = Vout/Vin = | C8: (Vout(max) - Vout(min) / (Vin(max) - Vin(min) | G8: =(D12-C12)/(F12-E12) -> 3.03030303 | H8: =+M54 -> Select Pos m Pos b | Y8: 4
A9: b = skæring med Y aksen = Y1 - (m * X1) = | D9: =D12-(G12*F12) -> 0.9696969697 | E9: Vout(min) - (m * Vin(min)) | G9: =C12-G8*E12 -> 0.9696969697 | J9: Udarbejdet af Jørgen Walter © | P9: Y=(X/2)+3 (3 skæring med Y-aksen) | Y9: 3
C10: =+A64 -> VoutZS = | D10: =+A63 -> VoutFS = | E10: =+A66 -> VinZS = | F10: =+A65 -> VinFS = | G10: m | H10: b | J10: www.walter-lystfisker.dk | P10: Indsættes X=2 fås Y=4 | Y10: 2
A11: Vout | B11: Vin | C11: Vout(min) | D11: Vout(max) | E11: Vin(min) | F11: Vin(max) | G11: m | H11: b | P11: Indsættes X=0 fås Y=-3 | Y11: 1
C12: =+B64 -> 1 | D12: =+B63 -> 4 | E12: =+B66 -> 0.01 | F12: =+B65 -> 1 | G12: =+G8 -> 3.03030303 | H12: =+G9 -> 0.9696969697 | J12: COPYRIGHT © 2014 | O12: -10 | P12: -9 | Q12: -8 | R12: -7 | S12: -6 | T12: -5 | U12: -4 | V12: -3 | W12: -2 | X12: -1 | Y12: 0 | Z12: 0 | AA12: 1 | AB12: 2 | AC12: 3 | AD12: 4 | AE12: 5 | AF12: 6 | AG12: 7 | AH12: 8 | AI12: 9 | AJ12: 10 | AK12: X
A13: Linjens ligning er givet ved: | C13: Y = + - m*X + - b = | E13: =IF(AND(G8>0,G9>0),A58,IF(AND(G8>0,G9<0),A67,IF(AND(G8<0,G9>0),A76,IF(AND(G8<0,G9<0),A85,"Try again")))) -> Vout = (m * Vin) + b | G13: =(G8*E12)+G9 -> 1 | H13: =(G8*F12)+G9 -> 4 | I13: Volt | Y13: -1
A14: Diagrammet herunder viser resultatet af de indsatte værdier i de gule celler | Y14: -2
Y15: -3
Y16: -4
Y17: -5
Y18: -6
Y19: -7
P20: Y=(X/2)-1 (-1 skæring med Y-aksen) | Y20: -8
P21: Indsættes X=2 fås Y=0 | Y21: -9
P22: Indsættes X=0 fås Y=-1 | Y22: -10
O24: Visning af kurverne er ikke målfaste men blot symbolske
R32: Udarbejdet af Jørgen Walter ©
A33: Ligningen for en ret linie har fire mulige løsninger afhængigt af fortegnet for m og b. Således giver ligningerne en løsning i fire former. Fire kredsløb skal udvikles, | R33: www.walter-lystfisker.dk
A34: en for hver form for ligningen for en ret linie. De fire ligninger ses herunder:
R35: COPYRIGHT © 2014
A36: 1 | B36: y = +mx + b | C36: Regneark: | D36: =+'Pos m Pos b'!F9 -> Select Pos m Pos b
A37: 2 | B37: y = +mx - b | C37: Regneark: | D37: =+'Pos m Neg b'!F9 -> Select Pos m Neg b
A38: 3 | B38: y = −mx + b | C38: Regneark: | D38: =+'Neg m Pos b'!F9 -> Select Neg m Pos b
A39: 4 | B39: y = -mx - b | C39: Regneark: | D39: =+'Neg m Neg b'!F9 -> Select Neg m Neg b
A41: Fortegnet på m og b afgør hvilken type kredsløb, der kræves for at implementere løsningen. Designeren kan nemt bestemme værdien og tegnet på m ved den følgende ligning:
A43: m = (Vout(max) - Vout(min) / (Vin(max) - Vin(min) = | D43: =+G8 -> 3.03030303 | E43: =IF(D43>0,"Select Pos m Pos b or Pos b Neg b",IF(D43<0,"Select Neg m Pos b or Neg m Neg b","Try again")) -> Select Pos m Pos b or Pos b Neg b | H43: Der er således 2 ligninger tilbage
A45: Værdien og fortegnet på b kan bestemmes ved at sætte værdien af ​​m ind i ligning 1
B47: Y = +m*X + b | C47: b = Y - (m * X) | D47: =D48-(D43*D49) -> 0.9696969697 | E47: =IF(AND(D47>0,D43>0),"Select Pos m Pos b",IF(AND(D47>0,D43<0),"Select Neg m Pos b",IF(AND(D47<0,D43>0),"Select Pos m Neg b",IF(AND(D47<0,D43<0),"Select Neg m Neg b","Try again")))) -> Select Pos m Pos b | H47: Der er således 1 ligning tilbage
B48: y = | C48: =+D11 -> Vout(max) | D48: =+D12 -> 4
B49: X = | C49: =+F11 -> Vin(max) | D49: =+F12 -> 1
A51: Regnearket er Password beskyttet, således er det ikke muligt at slette noget af vital betydning. Alle gule celler kan ændres med passende værdier for kredsløbet.
A52: Disse værdier skal indsættes i Volt, Ohm, Hz og pF. I modstands feltet beregnes modstandene i de grønne celler. De følger ikke altid standard værdier, derfor skal
A53: den nærmeste standard værdi for modstanden findes, og indsættes i den gule celle til højre. Alle 4 regneark har nogle default værdier, som passer til diagrammet.
A54: Prøv at indsætte v.h.a. Makro knap værdierne med de farvede tal herunder i de gule celler ovenfor, så kommer der et resultat op, for hvilken model der skal bruges: | M54: =+E47 -> Select Pos m Pos b
A55: I modellerne er der anvendt en LM324. Vcc(min) er 5V og Vcc(max) er 32V, hvilket giver Vout(min) 3,5V og Vout(max) 28V. Alle modeller er Bias til Vcc (Vcc = Vref).
A57: Ved at anvende Makro tasterne er det muligt at indsætte værdierne automatisk. | N57: De fire kredsløb ses herunder
A58: =+'Pos m Pos b'!A27 -> Vout = (m * Vin) + b
A59: Positive m and Positive b
A60: Default values
A61: Vcc = | B61: =+'Pos m Pos b'!T3 -> 6 | C61: Volt | V61: =+'Pos m Pos b'!B13 -> R1 = | X61: =+'Pos m Pos b'!F13 -> 10 | Z61: =+'Pos m Pos b'!G13 -> kΩ
A62: Vref = | B62: =+'Pos m Pos b'!T4 -> 6 | C62: Volt | J62: Makro knap | V62: =+'Pos m Pos b'!B14 -> Rf = | X62: =+'Pos m Pos b'!F14 -> 27 | Z62: =+'Pos m Pos b'!G14 -> kΩ
A63: VoutFS = | B63: =+'Pos m Pos b'!T5 -> 4 | C63: Volt | V63: =+'Pos m Pos b'!B15 -> R2 = | X63: =+'Pos m Pos b'!F15 -> 187 | Z63: =+'Pos m Pos b'!G15 -> kΩ
A64: VoutZS = | B64: =+'Pos m Pos b'!T6 -> 1 | C64: Volt | V64: =+'Pos m Pos b'!B16 -> Rg = | X64: =+'Pos m Pos b'!F16 -> 12.4 | Z64: =+'Pos m Pos b'!G16 -> kΩ
A65: VinFS = | B65: =+'Pos m Pos b'!T7 -> 1 | C65: Volt | V65: =+'Pos m Pos b'!B23 -> fo = | X65: =+'Pos m Pos b'!E23 -> 33.86275385 | Z65: =+'Pos m Pos b'!F23 -> kHz
A66: VinZS = | B66: =+'Pos m Pos b'!T8 -> 0.01 | C66: Volt
A67: =+'Pos m Neg b'!A31 -> Vout = (m * Vin) - b
A68: Positive m and Negative b
A69: Default values | V69: =+'Pos m Neg b'!B13 -> Rf = | X69: =+'Pos m Neg b'!F13 -> 180 | Z69: =+'Pos m Neg b'!G13 -> kΩ
A70: Vcc = | B70: =+'Pos m Neg b'!T3 -> 10 | C70: Volt | D70: =+C122 -> 0 | E70: =+C121 -> 0 | F70: =+C124 -> 0 | G70: =+C123 -> 0 | V70: =+'Pos m Neg b'!B14 -> Ro = | X70: =+'Pos m Neg b'!F14 -> 20 | Z70: =+'Pos m Neg b'!G14 -> kΩ
A71: Vref = | B71: =+'Pos m Neg b'!T4 -> 10 | C71: Volt | E71: =+D123 -> 0 | F71: =+D122 -> 0 | G71: =+D125 -> 0 | H71: =+D124 -> 0 | J71: Makro knap | V71: =+'Pos m Neg b'!B19 -> R1 = | X71: =+'Pos m Neg b'!F19 -> 432 | Z71: =+'Pos m Neg b'!G19 -> kΩ
A72: VoutFS = | B72: =+'Pos m Neg b'!T5 -> 4.5 | C72: Volt | V72: =+'Pos m Neg b'!B16 -> Rg2 = | X72: =+'Pos m Neg b'!F16 -> 2 | Z72: =+'Pos m Neg b'!G16 -> kΩ
A73: VoutZS = | B73: =+'Pos m Neg b'!T6 -> 1.5 | C73: Volt | V73: =+'Pos m Neg b'!B17 -> Rg1 = | X73: =+'Pos m Neg b'!F17 -> 18 | Z73: =+'Pos m Neg b'!G17 -> kΩ
A74: VinFS = | B74: =+'Pos m Neg b'!T7 -> 0.5 | C74: Volt | V74: =+'Pos m Neg b'!B27 -> fo = | X74: =+'Pos m Neg b'!E27 -> 16.93137692 | Z74: =+'Pos m Neg b'!F27 -> kHz
A75: VinZS = | B75: =+'Pos m Neg b'!T8 -> 0.2 | C75: Volt
A76: =+'Neg m Pos b'!A29 -> Vout = -(m * Vin) + b
A77: Negative m and Positive b
A78: Default values
A79: Vcc = | B79: =+'Neg m Pos b'!T3 -> 5 | C79: Volt | V79: =+'Neg m Pos b'!B13 -> Rf = | X79: =+'Neg m Pos b'!F13 -> 100 | Z79: =+'Neg m Pos b'!G13 -> kΩ
A80: Vref = | B80: =+'Neg m Pos b'!T4 -> 5 | C80: Volt | J80: Makro knap | V80: =+'Neg m Pos b'!B14 -> R2 = | X80: =+'Neg m Pos b'!F14 -> 100 | Z80: =+'Neg m Pos b'!G14 -> kΩ
A81: VoutFS = | B81: =+'Neg m Pos b'!T5 -> 1 | C81: Volt | V81: =+'Neg m Pos b'!B15 -> Rg = | X81: =+'Neg m Pos b'!F15 -> 100 | Z81: =+'Neg m Pos b'!G15 -> kΩ
A82: VoutZS = | B82: =+'Neg m Pos b'!T6 -> 3.5 | C82: Volt | V82: =+'Neg m Pos b'!B16 -> R1 = | X82: =+'Neg m Pos b'!F16 -> 100 | Z82: =+'Neg m Pos b'!G16 -> kΩ
A83: VinFS = | B83: =+'Neg m Pos b'!T7 -> 4 | C83: Volt | V83: =+'Neg m Pos b'!B24 -> fo = | X83: =+'Neg m Pos b'!E24 -> 3.386275385 | Z83: =+'Neg m Pos b'!F24 -> kHz
A84: VinZS = | B84: =+'Neg m Pos b'!T8 -> 1.5 | C84: Volt
A85: =+'Neg m Neg b'!A27 -> Vout = -(m * Vin) - b
A86: Negative m and Negative b
A87: Default values
A88: Vcc = | B88: =+'Neg m Neg b'!T3 -> 8 | C88: Volt
A89: Vref = | B89: =+'Neg m Neg b'!T4 -> 8 | C89: Volt | J89: Makro knap
A90: VoutFS = | B90: =+'Neg m Neg b'!T5 -> 1 | C90: Volt | V90: =+'Neg m Neg b'!B13 -> Rf = | X90: =+'Neg m Neg b'!F13 -> 20 | Z90: =+'Neg m Neg b'!G13 -> kΩ
A91: VoutZS = | B91: =+'Neg m Neg b'!T6 -> 5 | C91: Volt | V91: =+'Neg m Neg b'!B14 -> Rg1 = | X91: =+'Neg m Neg b'!F14 -> 1 | Z91: =+'Neg m Neg b'!G14 -> kΩ
A92: VinFS = | B92: =+'Neg m Neg b'!T7 -> -0.1 | C92: Volt | V92: =+'Neg m Neg b'!B15 -> Rg2 = | X92: =+'Neg m Neg b'!F15 -> 160 | Z92: =+'Neg m Neg b'!G15 -> kΩ
A93: VinZS = | B93: =+'Neg m Neg b'!T8 -> -0.3 | C93: Volt | V93: =+'Neg m Neg b'!B23 -> fo = | X93: =+'Neg m Neg b'!E23 -> 16.93137692 | Z93: =+'Neg m Neg b'!F23 -> kHz
A99: walter | AJ99: Reg.No.1260
